Cogmind - Beta 16 @@@ ROGUE MODE // 2025.12.26 @ 17:30:48 Player: Humbble Result: Destroyed by B-75 Beast with Magnetic Acceleration Cannon Performance ------------- Evolutions (1) 500 Regions Visited (6) 1200 Robots Destroyed (19) 95 Value Destroyed (658) 658 Prototype IDs (0) 0 Alien Tech Used (0) 0 Bonus (600) 600 TOTAL SCORE: 3053 Bonus ------- Met Imprinter 300 Was Imprinted 300 Cogmind --------- Core Integrity 0/400 Matter 300/300 Energy 100/100 System Corruption 0% Temperature Cool (12) Movement Core (150) Ox2 Location -6/Proximity Caves Parts ------- > --- POWER (1) -------- (None) > --- PROPULSION (3) --- (None) > --- UTILITY (3) ------ Small Storage Unit > --- WEAPON (2) ------- CR-A16's Pointy Stick > --- INVENTORY (8) ---- Hover Unit Hover Unit Hover Unit Assault Rifle Autogun Autogun Flak Cannon Heavy Rocket Launcher Peak State ------------ > --- POWER ------------ Ion Engine > --- PROPULSION ------- Airjet Airjet Airjet > --- UTILITY ---------- Small Storage Unit Improved Terrain Scanner Seismic Detector > --- WEAPON ----------- Flak Cannon CR-A16's Pointy Stick > --- INVENTORY -------- Hover Unit Hover Unit Hover Unit Assault Rifle Autogun Autogun Flak Cannon Heavy Rocket Launcher [Rating: 23] Favorites ----------- Power Ion Engine Engine Ion Engine Propulsion Airjet Leg Aluminum Leg Hover Unit Airjet Utility Small Storage Unit Device Seismic Detector Storage Small Storage Unit Weapon Flak Cannon Ballistic Gun Assault Rifle Ballistic Cannon Flak Cannon Piercing Weapon CR-A16's Pointy Stick Build | -11 -10 -10 -9 -9 -7 -6 ------- Run | Yrd Mat Min Mat Min Zio Pro Slots Evolved 2 | . . . 2 . . . Power . | . . . . . . . Propulsion 1 | . . . 1 . . . Utility 1 | . . . 1 . . . Weapon . | . . . . . . . Parts Attached 24 | 7 . 1 14 1 . 1 Power 3 | 1 . . 2 . . . Engine 3 | 1 . . 2 . . . Core . | . . . . . . . Reactor . | . . . . . . . Propulsion 9 | 2 . . 6 1 . . Treads . | . . . . . . . Leg 5 | 2 . . 3 . . . Wheel . | . . . . . . . Hover 4 | . . . 3 1 . . Flight . | . . . . . . . Utility 3 | 2 . . 1 . . . Device 2 | 1 . . 1 . . . Storage 1 | 1 . . . . . . Processor . | . . . . . . . Hackware . | . . . . . . . Protection . | . . . . . . . Artifact . | . . . . . . . Weapon 9 | 2 . 1 5 . . 1 Energy Gun . | . . . . . . . Energy Cannon . | . . . . . . . Ballistic Gun 4 | 2 . 1 1 . . . Ballistic Cannon 4 | . . . 4 . . . Launcher . | . . . . . . . Special Weapon . | . . . . . . . Impact Weapon . | . . . . . . . Slashing Weapon . | . . . . . . . Piercing Weapon 1 | . . . . . . 1 Special Melee Weapon . | . . . . . . . Unidentified Prototypes . | . . . . . . . Parts Lost 7 | . . . . 1 . 6 Power 1 | . . . . . . 1 Propulsion 3 | . . . . 1 . 2 Utility 2 | . . . . . . 2 Weapon 1 | . . . . . . 1 Highest Loss Streak 6 | . . . . 1 . 6 To Critical Strikes . | . . . . . . . Average Backups 7 | 3 6 7 7 7 7 8 Power . | . 1 1 . . . . Propulsion 2 | 1 2 2 3 3 3 3 Utility . | . 1 2 1 1 . . Weapon 3 | . 1 1 2 3 4 5 Tool/Special . | . . . . . . . Unused Backups 15 | . . . 9 . 1 5 Power 1 | . . . 1 . . . Propulsion 7 | . . . 4 . . 3 Utility 3 | . . . 2 . 1 . Weapon 4 | . . . 2 . . 2 Tool/Special . | . . . . . . . Average Slot Usage (%) 99 | . 100 100 99 98 100 97 Engine 11 | . 14 14 11 11 11 10 Leg 11 | . 28 28 18 . . . Hover 20 | . . . 14 31 33 31 Device 20 | . 14 14 21 22 22 21 Storage 11 | . 14 14 11 11 11 11 Ballistic Gun 10 | . 28 28 14 . . . Ballistic Cannon 12 | . . . 7 22 22 21 Peak Build Rating 23 | 7 7 8 22 22 22 23 Average Rating 16 | 5 7 7 16 21 22 21 On Entrance 12 | . 7 7 8 22 22 22 Avg Prop Armor Cover (%) . | . . . . . . . Naked Turns . | . . . . . . . Heaviest Build 24 | 15 15 15 24 24 24 24 Greatest Support 33 | 20 20 20 33 24 24 24 Greatest Overweight (x) 5 | 1 . . 5 1 . 2 Average Overweight (x) . | . . . . . . . Largest Inventory Capacity 8 | 8 8 8 8 8 8 8 Average Capacity 7 | 6 8 8 8 8 8 8 Most Carried 8 | 5 7 8 8 8 8 8 Average Carried 7 | 3 6 7 7 7 7 8 Final Capacity 8 | 8 8 8 8 8 8 8 Final Carried 8 | 5 7 8 8 7 8 8 Class Distribution -------------------- 91% | Mutant 8% | Scavenger-Mutant Dominant Class ---------------- Mutant | -10/Materials Mutant | -10/Mines Mutant | -9/Materials Mutant | -9/Mines Mutant | -7/Zion Mutant | -6/Proximity Caves Resources | -11 -10 -10 -9 -9 -7 -6 ----------- Run | Yrd Mat Min Mat Min Zio Pro Matter Collected 860 | 235 47 75 292 145 30 36 Remotely . | . . . . . . . Salvage Created 484 | 10 47 75 292 42 . 18 Parts 40 | 4 8 4 20 4 . . Haulers Intercepted . | . . . . . . . Recyclers Shooed . | . . . . . . . Parts Field Recycled . | . . . . . . . Retrieved Matter . | . . . . . . . Parts Self-Destructed . | . . . . . . . Prevented . | . . . . . . . Parts Restored . | . . . . . . . Kills | -11 -10 -10 -9 -9 -7 -6 ------- Run | Yrd Mat Min Mat Min Zio Pro Combat Hostiles Destroyed 18 | . 3 2 10 2 . 1 Guns 8 | . 3 2 3 . . . Cannons 10 | . . . 7 2 . 1 Classes Destroyed 5 | 1 1 1 1 . . 1 Tunneler 1 | 1 . . . . . . Swarmer 3 | . 3 . . . . . Grunt 11 | . . 2 7 2 . . Sentry 3 | . . . 3 . . . Programmer 1 | . . . . . . 1 Best Kill Streak 7 | 1 3 2 7 2 . 1 Combat Bots Only 7 | . 3 2 7 2 . 1 Max Kills in Single Turn 1 | 1 1 1 1 1 . 1 Gunslinging . | . . . . . . . Exploded . | . . . . . . . Melee . | . . . . . . . Uniques/NPCs Destroyed . | . . . . . . . Combat | -11 -10 -10 -9 -9 -7 -6 -------- Run | Yrd Mat Min Mat Min Zio Pro Hostile Shots Fired 134 | . 26 22 40 14 . 32 Missed 37 | . 10 7 7 5 . 8 Hits 97 | . 16 15 33 9 . 24 Projectile 97 | . 16 15 33 9 . 24 Critical Strikes 1 | . . . . . . 1 Damage Taken 1517 | . 126 192 460 94 . 645 Core 472 | . 27 44 60 17 . 324 Absorbed by Shields . | . . . . . . . Core Remaining (%) 85 | 100 . 71 . . . . Volleys Fired 49 | 3 6 9 24 4 . 3 Largest 2 | 2 2 2 2 2 . 2 Hottest 74 | 40 40 40 74 74 . 74 Shots Fired 98 | 6 12 18 48 8 . 6 Gun 54 | 6 12 18 18 . . . Cannon 44 | . . . 30 8 . 6 Launcher . | . . . . . . . Special . | . . . . . . . Kinetic 98 | 6 12 18 48 8 . 6 Thermal . | . . . . . . . Explosive . | . . . . . . . Electromagnetic . | . . . . . . . Robot Hit Streak 9 | 2 9 5 9 3 . 4 Robot Miss Streak 7 | 1 3 2 7 4 . 6 Penetration Max . | . . . . . . . Secondary Targets 2 | . 1 1 . . . . Max Gunslinging Chain 1 | . 1 1 . . . . Shots Hit Robots 75 | 4 8 11 37 7 . 8 Core Hits 54 | 1 3 5 32 8 . 5 Critical Kills 1 | . . . 1 . . . Critical Parts Destroyed . | . . . . . . . Critical Strikes 1 | . . . 1 . . . Destroy 1 | . . . 1 . . . Melee Attacks 6 | . . . . . . 6 Impact . | . . . . . . . Slashing . | . . . . . . . Piercing 6 | . . . . . . 6 Sneak Attacks . | . . . . . . . Combat Hostiles . | . . . . . . . Follow-up Attacks . | . . . . . . . Damage Inflicted 1243 | 48 103 155 635 119 . 183 Guns 456 | 48 103 155 150 . . . Cannons 722 | . . . 485 119 . 118 Explosions . | . . . . . . . Melee 65 | . . . . . . 65 Ramming . | . . . . . . . Kinetic 1178 | 48 103 155 635 119 . 118 Thermal . | . . . . . . . Explosive . | . . . . . . . Electromagnetic . | . . . . . . . Impact . | . . . . . . . Slashing . | . . . . . . . Piercing 65 | . . . . . . 65 Highest Corruption . | . . . . . . . Average Corruption . | . . . . . . . Corruption Purged . | . . . . . . . Corruption Blocked . | . . . . . . . Overload Shots . | . . . . . . . Overflow Damage . | . . . . . . . Projectiles . | . . . . . . . Explosions . | . . . . . . . Melee . | . . . . . . . Knockbacks 8 | . . . 8 . . . Impact . | . . . . . . . Kinetic 6 | . . . 6 . . . Secondary 2 | . . . 2 . . . Self-Inflicted Damage . | . . . . . . . Shots . | . . . . . . . Rammed . | . . . . . . . Targets Rammed . | . . . . . . . Kicked . | . . . . . . . Crushed . | . . . . . . . Highest Temperature 220 | . . 9 220 85 . 39 Average Temperature 81 | . . 3 110 44 . 21 Received Heat Transfer 453 | . . 108 189 48 . 108 Siege Activations . | . . . . . . . Martial Activations . | . . . . . . . Shielding Activations . | . . . . . . . Robots Disrupted . | . . . . . . . Combat Hostiles . | . . . . . . . Robots Corrupted . | . . . . . . . Combat Hostiles . | . . . . . . . Parts Fried . | . . . . . . . Impact Corruptions . | . . . . . . . Robots Melted . | . . . . . . . Combat Hostiles . | . . . . . . . Parts Melted . | . . . . . . . Heat Transferred . | . . . . . . . Parts Sabotaged . | . . . . . . . Parts Stolen . | . . . . . . . Parts Stripped . | . . . . . . . Power Chain Reactions . | . . . . . . . Alert | -11 -10 -10 -9 -9 -7 -6 ------- Run | Yrd Mat Min Mat Min Zio Pro Maximum Alert Level . | . . . . . . . Low Security (%) 100 | 100 100 100 100 100 . . Level 1 . | . . . . . . . Level 2 . | . . . . . . . Level 3 . | . . . . . . . Level 4 . | . . . . . . . Level 5 . | . . . . . . . High Security . | . . . . . . . Max Security . | . . . . . . . Peak Influence 182 | 5 61 50 182 95 . . Initial 55 | . . . 7 55 . . Average 36 | 1 21 10 53 50 . . Influence Increases 521 | 5 71 50 300 65 . 30 Destroy 0b10 Robot/C 360 | . 60 40 200 40 . 20 Destroy 0b10 Robot/NC 5 | 5 . . . . . . Destroy Leader 90 | . 10 10 50 10 . 10 Successful Hack 18 | . . . 18 . . . Destroy Structure 3 | . 1 . 2 . . . Partial Spotted 15 | . . . . 15 . . Lose Combat Pursuer 30 | . . . 30 . . . Influence Decreases 521 | 5 70 31 178 197 10 30 Entered New Map 111 | . . 1 13 87 10 . Time Decay 360 | 5 70 30 165 60 . 30 Lost Part 10 | . . . . 10 . . Lost Ally 40 | . . . . 40 . . Squads Dispatched 1 | . . . 1 . . . Investigation 1 | . . . 1 . . . Extermination . | . . . . . . . Reinforcement . | . . . . . . . Assault . | . . . . . . . Garrison . | . . . . . . . Intercept . | . . . . . . . Searches Triggered . | . . . . . . . Construction Impeded . | . . . . . . . Haulers Reinforced . | . . . . . . . Active Scanning Responses . | . . . . . . . Cargo Convoy Interrupts . | . . . . . . . Stealth | -11 -10 -10 -9 -9 -7 -6 --------- Run | Yrd Mat Min Mat Min Zio Pro Distress Signals 1 | . . . . 1 . . Communications Jammed . | . . . . . . . Distress Signals . | . . . . . . . Times Spotted 35 | . 5 2 10 16 . 2 Peak Tracking Total 10 | . 4 2 8 10 . 1 Tactical Retreats 3 | . . . 1 2 . . Traps | -11 -10 -10 -9 -9 -7 -6 ------- Run | Yrd Mat Min Mat Min Zio Pro Traps Triggered . | . . . . . . . Indirectly . | . . . . . . . Trap Hack Attempts . | . . . . . . . Triggered . | . . . . . . . Disarmed . | . . . . . . . Reprogrammed . | . . . . . . . Reused . | . . . . . . . Traps Extracted . | . . . . . . . Installed . | . . . . . . . Triggered . | . . . . . . . Machines | -11 -10 -10 -9 -9 -7 -6 ---------- Run | Yrd Mat Min Mat Min Zio Pro Machines Disabled . | . . . . . . . Max in Single Turn . | . . . . . . . Machines Repaired . | . . . . . . . Machines Dismantled . | . . . . . . . Machines Sabotaged . | . . . . . . . Overloaded Fab Kills . | . . . . . . . Hacking | -11 -10 -10 -9 -9 -7 -6 --------- Run | Yrd Mat Min Mat Min Zio Pro Machines Accessed 5 | . 1 . 4 . . . Terminals 4 | . 1 . 3 . . . Fabricators . | . . . . . . . Repair Stations . | . . . . . . . Recycling Units . | . . . . . . . Scanalyzers 1 | . . . 1 . . . Garrison Access . | . . . . . . . Total Hacks 12 | . 2 . 10 . . . Successful 4 | . . . 4 . . . Failed 7 | . 2 . 5 . . . Catastrophic 1 | . . . 1 . . . Database Lockouts 1 | . . . 1 . . . Manual 8 | . 2 . 6 . . . Terminals 9 | . 2 . 7 . . . Fabricators . | . . . . . . . Repair Stations . | . . . . . . . Recycling Units . | . . . . . . . Scanalyzers 3 | . . . 3 . . . Garrison Access . | . . . . . . . Terminal Hacks 1 | . . . 1 . . . Investigation Status 1 | . . . 1 . . . Fabricator Hacks . | . . . . . . . Repair Station Hacks . | . . . . . . . Recycling Unit Hacks . | . . . . . . . Scanalyzer 1 | . . . 1 . . . Retrieve Study 1 | . . . 1 . . . Garrison Access Hacks . | . . . . . . . Unauthorized Hacks 2 | . . . 2 . . . Terminals 2 | . . . 2 . . . Botnet 1 | . . . 1 . . . Skim 1 | . . . 1 . . . Fabricators . | . . . . . . . Repair Stations . | . . . . . . . Recycling Units . | . . . . . . . Scanalyzers . | . . . . . . . Garrison Access . | . . . . . . . Data Cores Recovered . | . . . . . . . Used . | . . . . . . . Hacking Detections 3 | . . . 3 . . . Full Trace Events 2 | . . . 2 . . . Feedback Events . | . . . . . . . Feedback Blocked . | . . . . . . . Robot Schematics Acquired 3 | . . . . . 3 . Robots Built . | . . . . . . . Authchips . | . . . . . . . Time . | . . . . . . . Total Robot Build Rating . | . . . . . . . Part Schematics Acquired 14 | . . . . . 14 . Parts Built . | . . . . . . . Authchips . | . . . . . . . Time . | . . . . . . . Total Part Build Rating . | . . . . . . . Part Studies Acquired . | . . . . . . . Parts Repaired . | . . . . . . . Time . | . . . . . . . Parts Recycled . | . . . . . . . Recycled Matter . | . . . . . . . Retrieved Matter . | . . . . . . . Retrieved Components . | . . . . . . . Parts Scanalyzed . | . . . . . . . Part Schematics Acquired . | . . . . . . . Parts Damaged . | . . . . . . . Bothacking | -11 -10 -10 -9 -9 -7 -6 ------------ Run | Yrd Mat Min Mat Min Zio Pro Used RIF Installer . | . . . . . . . Robots Hacked . | . . . . . . . Non-combat . | . . . . . . . Combat . | . . . . . . . Robot Hacks Applied . | . . . . . . . Relay Couplers Released . | . . . . . . . Fabnet Peak Effective % . | . . . . . . . Robots Rewired . | . . . . . . . Allies Hacked . | . . . . . . . Hacks Repelled . | . . . . . . . Allies | -11 -10 -10 -9 -9 -7 -6 -------- Run | Yrd Mat Min Mat Min Zio Pro Total Allies 6 | . . . . 2 4 . Largest Group 4 | . . . . 2 4 . Highest-Rated Group 153 | . . . . 47 153 . Highest-Rated Ally 40 | . . . . 31 40 . Total Orders . | . . . . . . . Ally Attacks 9 | . . . . 9 . . Total Damage 106 | . . . . 106 . . Kills 3 | . . . . 3 . . Allies Corrupted . | . . . . . . . Allies Melted . | . . . . . . . Intel | -11 -10 -10 -9 -9 -7 -6 ------- Run | Yrd Mat Min Mat Min Zio Pro Active Infowar (turns) 1796 | 11 191 183 517 133 413 348 Terrain 1410 | . . . 516 133 413 348 Seismic 1786 | 11 191 183 517 133 413 338 Robot Analysis Total . | . . . . . . . Derelict Logs Recovered 5 | . . 2 . 2 . 1 Drone Launches . | . . . . . . . Drone Recoveries . | . . . . . . . Exploration | -11 -10 -10 -9 -9 -7 -6 ------------- Run | Yrd Mat Min Mat Min Zio Pro Turns Passed 1877 | 80 191 183 517 133 413 360 Spaces Moved 1971 | 52 137 126 437 208 696 315 Core 12 | 9 . . 1 . . 2 Treads . | . . . . . . . Legs 497 | 43 137 126 191 . . . Wheels . | . . . . . . . Hover 1462 | . . . 245 208 696 313 Flight . | . . . . . . . Fastest Speed 50 | 50 120 120 52 52 52 52 Average Speed 69 | 108 120 120 82 54 52 52 Slowest Speed 300 | 120 120 120 300 116 52 150 Overloaded Moves . | . . . . . . . Propulsion Burnouts . | . . . . . . . Robots Hopped . | . . . . . . . Potential Cave-ins . | . . . . . . . Cave-ins Triggered . | . . . . . . . Exploration Rate (%) 38 | 5 23 44 37 48 69 40 Regions Visited 6 Branch Regions 4 Pre-discovered Areas 5 | . . 1 . 2 2 . Known Exits Taken . | . . . . . . . Unknown Exits Taken 6 | 1 1 1 1 1 1 . Scrap Searched 4 | . . . . . 3 1 Spaces Dug . | . . . . . . . Terrain Destroyed . | . . . . . . . Melee . | . . . . . . . Projectile . | . . . . . . . AOE . | . . . . . . . Terrain Rammed . | . . . . . . . Walls Destroyed . | . . . . . . . Machines Disabled . | . . . . . . . Actions | -11 -10 -10 -9 -9 -7 -6 --------- Run | Yrd Mat Min Mat Min Zio Pro Total 2366 | 66 151 140 553 219 747 490 Wait 274 | . 7 2 44 7 49 165 Move 1965 | 51 136 125 436 207 695 315 Hop . | . . . . . . . Pick Up 25 | 5 2 2 14 . 2 . Fast Attach 10 | 7 . . 3 . . . Attach 4 | . . 1 2 1 . . Detach . | . . . . . . . Swap 10 | . . . 9 . . 1 Drop 23 | . . 1 21 . 1 . Fire 49 | 3 6 9 24 4 . 3 Melee 6 | . . . . . . 6 Ram . | . . . . . . . Kick . | . . . . . . . Crush . | . . . . . . . Escape Stasis . | . . . . . . . Rewire . | . . . . . . . Trap . | . . . . . . . Miscellaneous . | . . . . . . . Route ------- -11/Scrapyard -10/Materials -10/Mines -9/Materials (discovered 3 exits: [*Mat] / [*Min x2]) -9/Mines (discovered 2 exits: [*Mat] / *Zio) -7/Zion -6/Proximity Caves (discovered 1 exit: Fac) History --------- Turn | Location | Event 11 | -11/Scrapyard | Discovered new exit (range 15) 81 | -11/Scrapyard | Entered Materials 186 | -10/Materials | Discovered new exit (range 15) 272 | -10/Materials | Entered Mines 300 | -10/Mines | Build established: Mutant 336 | -10/Mines | Learned Materials terminal intel 371 | -10/Mines | Learned location of Zion (-7) 412 | -10/Mines | Discovered new exit (range 15) 455 | -10/Mines | Entered Materials 455 | -9/Materials | Evolved 2 slots: Propulsion x1, Utility x1 456 | -9/Materials | Loaded intel: 12 terminal locations 723 | -9/Materials | Discovered new exit (range 16) 885 | -9/Materials | Destroyed 7 combat bots 936 | -9/Materials | Central database locked down 966 | -9/Materials | Discovered new exit (range 5) 966 | -9/Materials | Discovered new exit (range 12) 972 | -9/Materials | Entered Mines 1004 | -9/Mines | Found a Scrap Suit stashed away for nefarious purposes 1012 | -9/Mines | Assembled infested the area 1017 | -9/Mines | Assisted by a Guerilla fighting off Assembled 1100 | -9/Mines | Discovered new exit (range 12) 1101 | -9/Mines | A Derelict revealed a hidden shortcut to a safe place 1101 | -9/Mines | Learned location of Recycling (-7) 1105 | -9/Mines | Entered Zion 1255 | -7/Zion | Found CR-A16's Pointy Stick 1407 | -7/Zion | Met Imprinter 1428 | -7/Zion | Imprinted 1430 | -7/Zion | Declared Zion's savior 1511 | -7/Zion | Discovered new exit (range 15) 1518 | -7/Zion | Entered Proximity Caves 1685 | -6/Proximity Caves | Received a Behemoth hack from an annoying Tinkerer 1725 | -6/Proximity Caves | P-60 Hacker assimilated allied 1U-YF2(c) 1808 | -6/Proximity Caves | Identified exit to Factory 1840 | -6/Proximity Caves | Spotted B-75 Beast 1867 | -6/Proximity Caves | Core integrity fell below 50% 1876 | -6/Proximity Caves | Core integrity fell below 20% 1878 | -6/Proximity Caves | Destroyed by B-75 Beast with Magnetic Acceleration Cannon Last Messages --------------- 01725_ P-60 Hacker hacks 1U-YF2(c), assimilated. 01733_ P-60 Hacker destroyed. 01734_ 1U-YF2(c) reactivates. 01741_ Acquired 18 matter. 01799_ Searching scrap... 01799_ Found Adv. Weight Redist. System. 01799_ Found 37 Matter. 01800_ Acquired 18 matter. 01808_ Acquired derelict log, extracted data. Loading 1 Proximity Caves exit... 01856_ Airjet blasted off. 01856_ Knocked back. 01856_ Seismic Detector destroyed. 01866_ Airjet destroyed. 01866_ Ion Engine destroyed. 01866_ Flak Cannon destroyed. 01866_ Imp. Terrain Scanner destroyed. 01866_ Knocked back. 01869_ Airjet destroyed. 01869_ Knocked back. Map ----- +----------------------------------------------------+ | #????#??????????????????????????????????????????? | | #???????????????????????????????????????????????? | | #???????????????????????????????????????????????? | | #???????????????????????? ?????????????????????? | | #################### #?????????????????????? | | ! #?????????????????????? | | % #????????????????????? | | ########### ###### ????????????????????? | | #?????????# ##?????????????????????????????????? | | ????????## ##????????????????????????????????? | | #?????## # ##??????? ???????????????????????? | | ##?#??## #??????????#????????????????????? | | ######## #??#????????????????????????????? | | ##?# # ##??????????????#????????????????? | | #??# ###?#####????????????# ????????????? | | # #??# #### ##???# ##????????? ???????????? | | ?##??# #### ##???# ##?????? ???????????? | | ????## ##????? ##?#### #???????????? | | ???## ##???? ## #????????????? | | ???# ####?? #?????????????? | | ???# ##?? #???? ?????????? | | ???## #??# #?### ?????????? | | ????# #??# ## ?????????? | | ????# #### BB #???????????? | | ???## ###### ###; BB #????????????? | | ?#?# ##????# ##?## %@ #????????????? | | ???## ##???## ##??#; ##???????????? | | ????# ##### ##??# ## #???????????? | | ????## ## #?## #?## #???????????? | | ?????# #### #?## ##???????????? | | ?????# ##### #### ##????????????? | | ????## ##?## #?# ##?????????????? | | ???## ##??# #?# ###??????????????? | | ???# #??## ### ;#????????????????? | | ??## #?## ####????????????????? | | ??# #### ##?#?????????????????? | | ??# ### ##????????????????????? | | ??# ### ## #?????????????????????? | | ??## ##?# #### ##?????#???????????????? | | ???# ####??# ##??#######??????? ??????????????? | | ???# ##????# #????????????????????????????????? | | ?#?# #????# ##???????????????????????????????? | | ???# ###### #???????????????????????????????? | | ???# ## ##??????????????????????????????? | | ??## #####??? ???? ?????????????????? | | ??# #??????????????????????????? | | ??# #?????????????????????????? | | ??# ## #????????????????????????? | | ??# ?# ## #???????????????????????? | | ??## ?# ###? ???#?????????????????? | +----------------------------------------------------+ Best States ------------- Heat Dissipation 28 Energy Generation 10 Energy Capacity 250 Matter Stores 300 Matter Capacity 300 Sight Range 16 Terrain Scan Range 16 Terrain Scan Density 10 Evasion (%) 55 Item Schematics ----------------- Lyr. Medium Armor Plating | -7/Zion | Archive Greatsword | -7/Zion | Archive Hyp. Gauss Cannon | -7/Zion | Archive Enh. Gauss Cannon | -7/Zion | Archive Power Maul | -7/Zion | Archive Hvy. Flak Cannon | -7/Zion | Archive Imp. Carbon-fiber Leg | -7/Zion | Archive Imp. Target Analyzer | -7/Zion | Archive Imp. Shield Generator | -7/Zion | Archive Energy Well | -7/Zion | Archive Weapon Cycler | -7/Zion | Archive Fission Core | -7/Zion | Archive Coil Gun | -7/Zion | Archive Lyr. Light Armor Plating | -7/Zion | Archive Robot Schematics ------------------ I-36 Angel | -7/Zion | Archive A-02 Transporter | -7/Zion | Archive B-48 Gladiator | -7/Zion | Archive Fabricated ------------ Nothing Repaired ---------- Nothing Studied --------- None Alien Tech Used ----------------- None Achievements -------------- Slippery One Challenges ------------ None Game ------ Seed HypertargetingDataShovel Manual? 0 Play Time 00:33:58 Cumulative 63.9 hours Start 2025.12.26 @ 16:52:17 End 2025.12.26 @ 17:30:48 Sessions 1 Manual Loads 0 Difficulty Rogue Special Mode None Game No. 61 Rogue 56 Adventurer 0 Explorer 5 Win Type - Total 0 Types 0/0/0/0/0/0/0/0/0/0 Lore% 27 Gallery% 29 Achievement% 22 Wizard Run 0 Options --------- Layout 0 ASCII 0 Keyboard 0 Movement Mouse Keybinds 0 Fullscreen 2 Font 18/SmallcapsGlow Map View 76x50 Zoom Use 0% Tactical HUD 1 Map Filters NONE Filters NONE Steam 1 RUN: 796eaf7e-eff2-485b-8354-3559098f55b5